Cogmind - Beta 13 @@@ ROGUE MODE // 2024.04.12 @ 21:04:55 Player: J-mop Result: Destroyed self with Rocket Launcher Performance ------------- Evolutions (1) 500 Regions Visited (3) 600 Robots Destroyed (53) 265 Value Destroyed (1387) 1387 Prototype IDs (0) 0 Alien Tech Used (0) 0 Bonus (0) 0 TOTAL SCORE: 2752 Bonus ------- None Cogmind --------- Core Integrity 0/400 Matter 252/300 Energy 100/100 System Corruption 0% Temperature Cool (0) Movement Flying (280) Ox3 Location -9/Materials Parts ------- > --- POWER (1) -------- (None) > --- PROPULSION (3) --- Flight Unit > --- UTILITY (3) ------ Medium Storage Unit Structural Scanner > --- WEAPON (2) ------- Rocket Launcher > --- INVENTORY (10) --- Ion Engine Hacking Suite Hacking Suite Datajack Peak State ------------ > --- POWER ------------ Light Nuclear Core > --- PROPULSION ------- Flight Unit Flight Unit Flight Unit > --- UTILITY ---------- Medium Storage Unit Structural Scanner > --- WEAPON ----------- Heavy Assault Rifle Heavy Assault Rifle > --- INVENTORY -------- Flight Unit Hacking Suite Hacking Suite Rocket Launcher Rocket Launcher Datajack [Rating: 13] Favorites ----------- Power Light Ion Engine Engine Light Ion Engine Power Core Light Nuclear Core Propulsion Light Treads Treads Light Treads Hover Unit Backup Propulsion I Flight Unit Flight Unit Utility Structural Scanner Device Structural Scanner Storage Medium Storage Unit Protection Light Armor Plating Weapon Heavy Assault Rifle Ballistic Gun Heavy Assault Rifle Launcher Rocket Launcher Build | -11 -10 -10 -9 ------- Run | Yrd Mat Min Mat Slots Evolved 2 | . . . 2 Power . | . . . . Propulsion 1 | . . . 1 Utility 1 | . . . 1 Weapon . | . . . . Parts Attached 40 | 6 18 2 14 Power 8 | 1 3 1 3 Engine 7 | 1 3 1 2 Core 1 | . . . 1 Reactor . | . . . . Propulsion 14 | 2 7 . 5 Treads 7 | 2 4 . 1 Leg . | . . . . Wheel . | . . . . Hover . | . . . . Flight 7 | . 3 . 4 Utility 6 | 1 3 . 2 Device 2 | . 1 . 1 Storage 3 | 1 2 . . Processor . | . . . . Hackware . | . . . . Protection 1 | . . . 1 Artifact . | . . . . Weapon 12 | 2 5 1 4 Energy Gun . | . . . . Energy Cannon . | . . . . Ballistic Gun 10 | 2 5 1 2 Ballistic Cannon . | . . . . Launcher 2 | . . . 2 Special Weapon . | . . . . Impact Weapon . | . . . . Slashing Weapon . | . . . . Piercing Weapon . | . . . . Special Melee Weapon . | . . . . Unidentified Prototypes . | . . . . Parts Lost 12 | . 1 1 10 Power 3 | . 1 . 2 Propulsion 5 | . . . 5 Utility 1 | . . . 1 Weapon 3 | . . 1 2 Highest Loss Streak 4 | . 1 1 4 To Critical Strikes . | . . . . Average Slot Usage (%) 88 | . 88 99 80 Engine 12 | . 13 14 9 Treads 16 | . 17 28 7 Flight 6 | . 2 . 14 Device 11 | . 10 14 10 Storage 12 | . 14 14 11 Protection 1 | . . . 4 Ballistic Gun 25 | . 27 27 21 Naked Turns . | . . . . Heaviest Build 30 | 13 30 20 27 Greatest Support 40 | 40 40 40 40 Greatest Overweight (x) 4 | . 4 . 3 Average Overweight (x) . | . . . . Largest Inventory Capacity 15 | 8 15 10 10 Average Capacity 9 | 5 9 10 10 Most Carried 10 | 4 10 9 10 Average Carried 7 | 2 6 8 8 Final Capacity 10 | 8 10 10 10 Final Carried 9 | 2 9 9 4 Class Distribution -------------------- 56% | Mutant 43% | Scavenger-Mutant Dominant Class ---------------- Mutant | -10/Materials Mutant | -10/Mines Scavenger-Mutant | -9/Materials Resources | -11 -10 -10 -9 ----------- Run | Yrd Mat Min Mat Matter Collected 1352 | 260 376 187 529 Remotely . | . . . . Salvage Created 1816 | . 539 392 885 Parts 110 | . 37 18 55 Haulers Intercepted 1 | . 1 . . Recyclers Shooed 1 | . 1 . . Parts Field Recycled . | . . . . Retrieved Matter . | . . . . Parts Self-Destructed . | . . . . Prevented . | . . . . Kills | -11 -10 -10 -9 ------- Run | Yrd Mat Min Mat Combat Hostiles Destroyed 37 | . 7 9 21 Guns 34 | . 7 8 19 AOE 3 | . . 1 2 Classes Destroyed 10 | . 7 1 2 Worker 2 | . . 1 1 Builder 2 | . 2 . . Hauler 1 | . 1 . . Recycler 2 | . 1 1 . Operator 4 | . 1 . 3 Watcher 5 | . 3 . 2 Swarmer 9 | . 2 3 4 Grunt 22 | . 5 6 11 Duelist 2 | . . . 2 Sentry 4 | . . . 4 Best Kill Streak 5 | . 3 4 5 Combat Bots Only 5 | . 2 3 5 Max Kills in Single Turn 2 | . 1 2 2 Gunslinging . | . . . . Exploded 1 | . . 1 1 Melee . | . . . . Uniques/NPCs Destroyed . | . . . . Combat | -11 -10 -10 -9 -------- Run | Yrd Mat Min Mat Hostile Shots Fired 215 | . 34 49 132 Missed 53 | . 7 10 36 Damage Taken 2318 | . 319 523 1476 Core 611 | . 57 130 424 Absorbed by Shields . | . . . . Regen/Repaired (Parts) 150 | . 148 . 2 Core Remaining (%) 62 | 100 . 25 . Volleys Fired 156 | . 49 27 80 Largest 2 | . 2 2 2 Hottest 56 | . 46 46 56 Shots Fired 296 | . 96 54 146 Gun 291 | . 96 54 141 Cannon . | . . . . Launcher 5 | . . . 5 Special . | . . . . Kinetic 291 | . 96 54 141 Thermal . | . . . . Explosive 5 | . . . 5 Electromagnetic . | . . . . Robot Hit Streak 41 | . 9 8 41 Robot Miss Streak 5 | . 5 2 4 Penetration Max . | . . . . Secondary Targets 5 | . . 3 2 Max Gunslinging Chain 1 | . . 1 1 Shots Hit Robots 198 | . 53 34 111 Core Hits 86 | . 28 17 41 Critical Kills . | . . . . Critical Parts Destroyed 1 | . 1 . . Critical Strikes 1 | . 1 . . Destroy 1 | . 1 . . Melee Attacks . | . . . . Impact . | . . . . Slashing . | . . . . Piercing . | . . . . Sneak Attacks . | . . . . Combat Hostiles . | . . . . Follow-up Attacks . | . . . . Damage Inflicted 3139 | . 597 693 1849 Guns 2767 | . 597 539 1631 Cannons . | . . . . Explosions 372 | . . 154 218 Melee . | . . . . Ramming . | . . . . Kinetic 2767 | . 597 539 1631 Thermal 154 | . . 154 . Explosive 218 | . . . 218 Electromagnetic . | . . . . Impact . | . . . . Slashing . | . . . . Piercing . | . . . . Highest Corruption . | . . . . Average Corruption . | . . . . Corruption Purged . | . . . . Corruption Blocked . | . . . . Overload Shots . | . . . . Overflow Damage 9 | . . 9 . Projectiles . | . . . . Explosions 9 | . . 9 . Melee . | . . . . Knockbacks . | . . . . Impact . | . . . . Kinetic . | . . . . Secondary . | . . . . Self-Inflicted Damage 155 | . . 40 115 Shots 5 | . . 1 4 Rammed . | . . . . Targets Rammed . | . . . . Kicked . | . . . . Crushed . | . . . . Highest Temperature 22 | . 18 22 12 Average Temperature 5 | . 7 6 3 Received Heat Transfer 768 | . 159 222 387 Siege Activations . | . . . . Robots Corrupted . | . . . . Combat Hostiles . | . . . . Parts Fried . | . . . . Impact Corruptions . | . . . . Robots Melted . | . . . . Combat Hostiles . | . . . . Parts Melted . | . . . . Heat Transferred 150 | . . 150 . Parts Sabotaged . | . . . . Parts Stolen . | . . . . Parts Stripped . | . . . . Power Chain Reactions . | . . . . Alert | -11 -10 -10 -9 ------- Run | Yrd Mat Min Mat Peak Influence 264 | . 135 196 264 Initial 44 | . . . 44 Average 78 | . 60 59 108 Maximum Alert Level 1 | . . . 1 Low Security (%) 97 | 100 100 100 93 Level 1 2 | . . . 6 Level 2 . | . . . . Level 3 . | . . . . Level 4 . | . . . . Level 5 . | . . . . High Security . | . . . . Max Security . | . . . . Squads Dispatched 4 | . . . 4 Investigation 1 | . . . 1 Extermination . | . . . . Reinforcement 3 | . . . 3 Assault . | . . . . Garrison . | . . . . Intercept . | . . . . Searches Triggered . | . . . . Construction Impeded . | . . . . Haulers Reinforced . | . . . . Active Scanning Responses . | . . . . Cargo Convoy Interrupts . | . . . . Stealth | -11 -10 -10 -9 --------- Run | Yrd Mat Min Mat Distress Signals 2 | . 1 . 1 Communications Jammed . | . . . . Distress Signals . | . . . . Times Spotted 56 | . 17 9 30 Peak Tracking Total 5 | . 3 3 5 Tactical Retreats 4 | . 1 . 3 Traps | -11 -10 -10 -9 ------- Run | Yrd Mat Min Mat Traps Triggered 3 | . 2 . 1 Indirectly . | . . . . Trap Hack Attempts . | . . . . Triggered . | . . . . Disarmed . | . . . . Reprogrammed . | . . . . Reused . | . . . . Traps Extracted . | . . . . Installed . | . . . . Triggered . | . . . . Machines | -11 -10 -10 -9 ---------- Run | Yrd Mat Min Mat Machines Disabled 4 | . . 1 3 Max in Single Turn 1 | . . 1 1 Machines Repaired . | . . . . Machines Dismantled . | . . . . Machines Sabotaged . | . . . . Overloaded Fab Kills . | . . . . Hacking | -11 -10 -10 -9 --------- Run | Yrd Mat Min Mat Machines Accessed 14 | . 6 1 7 Terminals 11 | . 5 1 5 Fabricators . | . . . . Repair Stations 2 | . 1 . 1 Recycling Units . | . . . . Scanalyzers 1 | . . . 1 Garrison Access . | . . . . Total Hacks 36 | . 16 3 17 Successful 16 | . 8 1 7 Failed 20 | . 8 2 10 Catastrophic 3 | . 2 . 1 Database Lockouts . | . . . . Manual 10 | . 5 2 3 Terminals 22 | . 8 3 11 Fabricators . | . . . . Repair Stations 12 | . 8 . 4 Recycling Units . | . . . . Scanalyzers 2 | . . . 2 Garrison Access . | . . . . Terminal Hacks 6 | . 2 1 3 Branch Access Points 1 | . . . 1 Locate Traps 2 | . 1 . 1 Zone Layout 3 | . 1 1 1 Fabricator Hacks . | . . . . Repair Station Hacks 8 | . 6 . 2 Scan Component 4 | . 3 . 1 Repair 3 | . 2 . 1 Refit 1 | . 1 . . Recycling Unit Hacks . | . . . . Scanalyzer 2 | . . . 2 Insert Component 1 | . . . 1 Analyze 1 | . . . 1 Garrison Access Hacks . | . . . . Unauthorized Hacks . | . . . . Terminals . | . . . . Fabricators . | . . . . Repair Stations . | . . . . Recycling Units . | . . . . Scanalyzers . | . . . . Garrison Access . | . . . . Data Cores Recovered 1 | . 1 . . Used . | . . . . Hacking Detections 14 | . 6 1 7 Full Trace Events . | . . . . Feedback Events . | . . . . Feedback Blocked . | . . . . Robot Schematics Acquired . | . . . . Robots Built . | . . . . Authchips . | . . . . Time . | . . . . Total Robot Build Rating . | . . . . Part Schematics Acquired 1 | . . . 1 Parts Built . | . . . . Authchips . | . . . . Time . | . . . . Total Part Build Rating . | . . . . Parts Repaired 3 | . 2 . 1 Time 90 | . 52 . 38 Parts Recycled . | . . . . Recycled Matter . | . . . . Retrieved Matter . | . . . . Retrieved Components . | . . . . Parts Scanalyzed 1 | . . . 1 Part Schematics Acquired 1 | . . . 1 Parts Damaged . | . . . . Bothacking | -11 -10 -10 -9 ------------ Run | Yrd Mat Min Mat Used RIF Installer . | . . . . Robots Hacked . | . . . . Non-combat . | . . . . Combat . | . . . . Robot Hacks Applied . | . . . . Relay Couplers Released . | . . . . Fabnet Peak Effective % . | . . . . Robots Rewired . | . . . . Allies Hacked . | . . . . Hacks Repelled . | . . . . Allies | -11 -10 -10 -9 -------- Run | Yrd Mat Min Mat Total Allies . | . . . . Largest Group . | . . . . Highest-Rated Group . | . . . . Highest-Rated Ally . | . . . . Total Orders . | . . . . Ally Attacks . | . . . . Total Damage . | . . . . Kills . | . . . . Allies Corrupted . | . . . . Allies Melted . | . . . . Intel | -11 -10 -10 -9 ------- Run | Yrd Mat Min Mat Robot Analysis Total . | . . . . Derelict Logs Recovered 2 | . . 2 . Drone Launches . | . . . . Drone Recoveries . | . . . . Exploration | -11 -10 -10 -9 ------------- Run | Yrd Mat Min Mat Turns Passed 4146 | 65 1375 1068 1638 Spaces Moved 2172 | 38 670 605 859 Core 10 | 8 2 . . Treads 1629 | 30 667 605 327 Legs . | . . . . Wheels . | . . . . Hover . | . . . . Flight 533 | . 1 . 532 Fastest Speed 50 | 50 160 160 114 Average Speed 157 | 136 169 160 147 Slowest Speed 280 | 160 250 160 280 Overloaded Moves . | . . . . Propulsion Burnouts . | . . . . Robots Hopped . | . . . . Cave-ins Triggered . | . . . . Exploration Rate (%) 61 | 3 87 99 55 Regions Visited 3 Branch Regions 1 Pre-discovered Areas 1 | . . 1 . Known Exits Taken . | . . . . Unknown Exits Taken 3 | 1 1 1 . Scrap Searched 1 | . . 1 . Spaces Dug . | . . . . Terrain Destroyed 61 | . . 16 45 Melee . | . . . . Projectile . | . . . . AOE 61 | . . 16 45 Terrain Rammed . | . . . . Walls Destroyed . | . . . . Machines Disabled . | . . . . Actions | -11 -10 -10 -9 --------- Run | Yrd Mat Min Mat Total 2622 | 51 824 652 1095 Wait 175 | . 47 16 112 Move 2169 | 37 669 604 859 Hop . | . . . . Pick Up 55 | 8 28 2 17 Fast Attach . | . . . . Attach 32 | 6 12 2 12 Detach . | . . . . Swap 8 | . 6 . 2 Drop 27 | . 13 1 13 Fire 156 | . 49 27 80 Melee . | . . . . Ram . | . . . . Kick . | . . . . Crush . | . . . . Escape Stasis . | . . . . Rewire . | . . . . Trap . | . . . . Miscellaneous . | . . . . Route ------- -11/Scrapyard -10/Materials (discovered 3 exits: *Mat x2 / *Min) -10/Mines (discovered 3 exits: *Mat x2 / [*Sub]) -9/Materials (discovered 2 exits: [*Mat] / Min) History --------- Turn | Location | Event 34 | -11/Scrapyard | Discovered new exit (range 15) 66 | -11/Scrapyard | Entered Materials 271 | -10/Materials | Discovered new exit (range 14) 301 | -10/Materials | Build established: Mutant 537 | -10/Materials | Repaired Assault Rifle 1012 | -10/Materials | Discovered new exit (range 15) 1192 | -10/Materials | Discovered new exit (range 4) 1394 | -10/Materials | Repaired Lgt. Treads 1441 | -10/Materials | Entered Mines 1481 | -10/Mines | Learned Materials security intel 1482 | -10/Mines | Met a Derelict bent on vengeance 1777 | -10/Mines | Discovered new exit (range 13) 2055 | -10/Mines | Discovered new exit (range 9) 2158 | -10/Mines | Core integrity fell below 50% 2249 | -10/Mines | Received a Rocket Launcher from a helpful Derelict 2319 | -10/Mines | Learned location of Zion (-7) 2322 | -10/Mines | Discovered new exit (range 9) 2494 | -10/Mines | Build established: Scavenger-Mutant 2509 | -10/Mines | Entered Materials 2509 | -9/Materials | Evolved 2 slots: Propulsion x1, Utility x1 3305 | -9/Materials | Discovered new exit (range 3) 3430 | -9/Materials | Identified exit to Mines 3525 | -9/Materials | Repaired Hacking Suite 3701 | -9/Materials | Core integrity fell below 50% 4029 | -9/Materials | Core integrity fell below 20% 4061 | -9/Materials | Lost 4 parts (1p2n1w) 4147 | -9/Materials | Destroyed self with Rocket Launcher Last Messages --------------- The unstable cave ceiling collapses. Acquired 30 matter. U-05 Engineer lays Concrete. Acquired 20 matter. U-05 Engineer builds a Wall. Acquired 6 matter. O-16 Technician: "IFF HANDSHAKE FAILED. SECURING TERMINAL." K-01 Serf cleans the Processing Tank. ALERT: Hostiles spotted, dispatching reinforcements to Terminal M010. O-16 Technician destroyed. Acquired 6 matter. K-01 Serf collects debris. Critical hit (Burn: +37). Hvy. Assault Rifle destroyed. K-01 Serf destroyed. Flight Unit destroyed. The unstable cave ceiling collapses. Y-45 Defender destroyed. Map ----- +----------------------------------------------------+ | | | | | | | | | | | | | | | | | | | | | | | | | | | | | | | | | | | | | | | | | ????????#################???????????????????????? | | ????????## """T""" #######???????????????????? | | ????????## ############????????????? | | ????????## #########????????????? | | ????????## """ = ##????????????? | | ???????????""""" % @ ##????????????? | | ????????????"""" # * ##########????????????? | | ????????????"""" # # ###########????????????? | | ??????????? """ # ##??????????????????? | | ???????????######### ##??????????????????? | | ???????????#########""" ##??????????????????? | | ??????????????????##""" ##??????????????????? | | ??????????????????##""" ##????>?????????????? | | ??????????????????##""" ##??????????????????? | | ??????????????????##""" ##??????????????????? | | ??????#########???## ##??????????????????? | | ?################### ##### ? ##??????????? | | ?####### ############+####### # ??????????? | | ### + ??????????? | | ### # ??????????? | | # ??????????? | | ????#### #######+#########+## # ??????????? | | ######### ###### # ## ? # ??????????? | | ######### # #### # ????????? # ??????????? | | #!!! # """ # ??????????????????????? | | #!! # """ # ??????????????????????? | | #!! # """ # ??????????????????????? | | /######## # # # ??????????????????????? | | ### # #########??????????????????????? | | ???????## + #########??????????????????????? | +----------------------------------------------------+ Best States ------------- Heat Dissipation 28 Energy Generation 14 Energy Capacity 265 Matter Stores 300 Matter Capacity 300 Sight Range 16 Terrain Scan Density 10 Armor Coverage 150 Evasion (%) 40 Recoil Reduction 2 Item Schematics ----------------- Hacking Suite | -9/Materials | Scanalyzed Robot Schematics ------------------ None Fabricated ------------ Nothing Alien Tech Used ----------------- None Achievements -------------- None Challenges ------------ None Game ------ Seed MeleeShieldArmor Manual? 0 Play Time 00:34:35 Cumulative 18.7 hours Start 2024.04.12 @ 20:31:32 End 2024.04.12 @ 21:04:55 Sessions 1 Manual Loads 0 Difficulty Rogue Special Mode None Game No. 15 Rogue 10 Adventurer 5 Explorer 0 Win Type - Total 0 Types 0/0/0/0/0/0/0/0/0 Lore% 12 Gallery% 16 Achievement% 17 Wizard Run 0 Options --------- Layout 1 ASCII 0 Keyboard 0 Movement Numpad Keybinds 0 Fullscreen 1 Font 24/Smallcaps Map View 50x35 Zoom Use 0% Tactical HUD 0 Map Filters NONE Filters NONE Steam 1 RUN: 1855d528-4766-4916-ab41-e82f9958b213